[Event "15th Arad Open 2022"]
[Site "Arad"]
[Date "2022.08.11"]
[Round "5.1"]
[White "Stanciu, Alexandru-Ovidiu"]
[Black "Ramoutar, Alan-Safar"]
[Result "1/2-1/2"]
[ECO "B13"]
[WhiteElo "2326"]
[BlackElo "2453"]
[Annotator "TA"]
[PlyCount "152"]
[EventDate "2022.08.08"]
[EventType "swiss"]
[EventCountry "ROU"]
[SourceTitle "playchess.com"]
[Source "ChessBase"]
[SourceQuality "1"]
[TimeControl "5400+30"]

{[%evp 9,152,11,12,13,16,12,14,15,20,18,17,13,17,8,36,33,31,0,17,17,15,-25,-28,-18,38,50,31,0,108,25,63,0,0,0,-12,-25,51,0,0,-84,-96,-91,-79,-164,-172,-166,-163,-164,-160,-170,-165,-176,-166,-200,-200,-221,-173,-210,-207,-241,-233,-253,-227,-285,-287,-326,-280,-340,-251,-284,-288,-283,-275,-395,-336,-334,-315,-335,-255,-335,-329,-310,-331,-315,-321,-368,-374,-412,-418,-404,-354,-542,-492,-1360,-1277,-1913,-1799,-5441,-711,-29966,-29966,-4918,-337,-1008,-592,-592,-82,-82,-82,-82,-82,-100,-12,-15,0,-32,-20,-37,-8,-8,-3,-3,-3,-3,-3,-8,-8,-8,-8,-8,-8,-8,-8,-8,-8,-8,-8,-8,-8,-8,-8,-8,-8,-8,-8]} 1. e4 {[%emt 0:02:41]} c6 {[%emt 0:00:15]} 2. d4 {[%emt 0:00:57]} d5 {[%emt 0:00:13]} 3. exd5 {[%emt 0:00:07]} cxd5 {[%emt 0:00:10]} 4. Nf3 {[%emt 0:02:02]} Nc6 {[%emt 0:01:51]} 5. c3 {[%emt 0:03:02]} a6 {[%emt 0:09:48]} 6. Bd3 {[%emt 0:07:51] B13: Caro-Kann: Exchange Variation and Panov-Botvinnik Attack.} Bg4 {[%emt 0:00:28]} 7. O-O {[%emt 0:05:18]} e6 {[%emt 0:01:33]} 8. Bf4 {[%emt 0:00:52]} Nge7 {[%emt 0:04:26]} 9. Nbd2 {[%emt 0:01:20] [#]} Bf5 $146 {[%emt 0:05:44]} ({Predecessor:} 9... Ng6 10. Bg3 Bd6 11. Bxd6 Qxd6 12. g3 O-O 13. Re1 e5 14. dxe5 Ncxe5 15. Be2 f5 16. Nxe5 Nxe5 {1-0 (72) Ricci,A (1827)-Improta,G (1598) Chioggia 2017}) 10. Ne1 {[%emt 0:05:07]} Ng6 {[%emt 0:10:11]} 11. Bg3 {[%emt 0:02:58]} Nce7 {[%emt 0:09:09]} 12. Be2 {[%emt 0:29:35]} Nc6 {[%emt 0:01:38]} 13. Bd3 {[%emt 0:02:20]} Nge7 {[%emt 0:03:42]} 14. Bh4 {[%emt 0:33:20] White wants to play Bxf5.} Qd7 {[%emt 0:01:17]} 15. g4 {[%emt 0:00:00]} Bxd3 {[%emt 0:06:01]} 16. Nxd3 {[%emt 0:00:00]} Ng6 {[%emt 0:00:51]} (16... h5 $11) 17. Bg3 $14 {[%emt 0:00:00]} Bd6 {[%emt 0:05:41]} 18. f4 {[%emt 0:00:00]} f5 {[%emt 0:14:13]} (18... Nge7 $11) 19. Nf3 {[%emt 0:00:00]} (19. gxf5 $16 exf5 20. Re1+ Nge7 21. Qh5+ g6 22. Qh6) 19... O-O {[%emt 0:01:21]} 20. Ng5 {[%emt 0:00:00]} ({Better is} 20. g5 $1 $14) 20... Rae8 {[%emt 0:04:56]} 21. gxf5 {[%emt 0:00:00]} Rxf5 {[%emt 0:00:23][%cal Og6f4]} 22. Qg4 {[%emt 0:00:00][%cal Og5e6]} Qe7 {[%emt 0:07:08] [#]} ({Black should play} 22... Nce7 $11) 23. Rae1 {[%emt 0:00:00]} (23. Nxe6 $1 $14 Qf6 24. Ng5 (24. Nec5 h5 $11)) 23... Qf6 $1 $11 {[%emt 0:01:16]} 24. Ne5 {[%emt 0:02:22]} (24. Kh1 $11) 24... Bxe5 $17 {[%emt 0:02:29]} 25. dxe5 {[%emt 0:00:58]} Ncxe5 {[%emt 0:02:47]} 26. Qh5 {[%emt 0:01:53]} (26. Qh3 $17 h6 27. Nxe6) 26... h6 $19 {[%emt 0:00:51][%cal Bh7h6,Bh6g5,Bg5g4][%mdl 32]} 27. Rxe5 {[%emt 0:00:21]} Rxe5 {[%emt 0:01:25]} 28. fxe5 {[%emt 0:00:05]} Qxg5 {[%emt 0:00:08]} 29. Qxg5 {[%emt 0:00:35]} hxg5 {[%emt 0:00:02][%mdl 4096] Endgame KRB-KRN} 30. Kg2 {[%emt 0:00:06]} Rc8 {[%emt 0:00:39]} 31. Re1 {[%emt 0:01:30]} Rc4 {[%emt 0:02:04]} 32. Kf3 {[%emt 0:00:13]} g4+ {[%emt 0:00:27]} 33. Kg2 {[%emt 0:00:35]} Ne7 {[%emt 0:00:23]} 34. Re2 {[%emt 0:00:43]} Nf5 {[%emt 0:00:24]} 35. Be1 {[%emt 0:00:30]} Kf7 {[%emt 0:01:28]} 36. b3 {[%emt 0:00:09]} Rf4 {[%emt 0:02:09]} 37. Bf2 {[%emt 0:00:57]} b5 {[%emt 0:00:42]} 38. Bc5 {[%emt 0:00:30]} Ke8 {[%emt 0:00:25]} 39. Bb4 {[%emt 0:00:29]} Rf3 {[%emt 0:00:18]} 40. Kg1 {[%emt 0:00:00]} g3 {[%emt 0:00:00]} 41. a4 {[%emt 0:00:00]} (41. hxg3 $142 Rxg3+ 42. Kf1) 41... bxa4 {[%emt 0:00:00]} 42. bxa4 {[%emt 0:00:00]} Re3 {[%emt 0:00:00]} 43. Rb2 {[%emt 0:00:00]} Re1+ {[%emt 0:00:00]} (43... Rxe5 $2 44. hxg3 Re4 45. Kf2 $19) 44. Kg2 {[%emt 0:00:00]} gxh2 {[%emt 0:00:00]} ({But not} 44... Rxe5 $2 45. hxg3 Re3 46. Kf2 $19) 45. Kxh2 {[%emt 0:00:00]} Rxe5 {[%emt 0:00:00]} 46. Bc5 {[%emt 0:00:00]} g5 {[%emt 0:00:13][%cal Bg7g5,Bg5g4,Bg4g3,Bg3g2][%mdl 32]} 47. a5 {[%emt 0:00:00]} g4 {[%emt 0:00:24]} 48. Rb6 {[%emt 0:00:00]} Re2+ {[%emt 0:00:10]} 49. Kg1 {[%emt 0:00:00]} g3 {[%emt 0:01:46]} 50. Rxa6 {[%emt 0:00:14]} (50. Kf1 $142 Rc2 51. Rxa6) 50... Nh4 {[%emt 0:00:31][%cal Re2e1]} 51. Kf1 {[%emt 0:00:12] Against Re1+} (51. Ra8+ $142 Kd7 52. Rf8 Rg2+ 53. Kh1) 51... Ra2 {[%emt 0:02:55] ( -> ...g2+)} 52. Rxe6+ {[%emt 0:03:49]} Kf7 {[%emt 0:00:40]} 53. Re7+ {[%emt 0:00:03]} Kg6 {[%emt 0:00:49]} (53... Kf6 $142 54. Ke1 g2) 54. Re8 {[%emt 0:00:36]} g2+ {[%emt 0:00:26]} 55. Ke1 {[%emt 0:00:02]} Rxa5 $2 {[%emt 0:00:34]} (55... Nf3+ 56. Kd1 d4 57. Rg8+ Kf7 58. Rxg2 Rxg2 59. cxd4 Ke6) 56. Be3 $2 {[%emt 0:02:45]} (56. Bf2 Kf7 57. Re3) 56... Kf7 {[%emt 0:00:33]} 57. Rh8 {[%emt 0:00:16]} Nf3+ {[%emt 0:00:28]} (57... Ra1+ $19 58. Ke2 Ra2+ 59. Kd3 Nf3 60. Rh7+ Kg8) 58. Ke2 $17 {[%emt 0:00:08]} Ne5 {[%emt 0:00:29] White must now prevent ...Ra2+.} 59. Bg1 {[%emt 0:01:28]} Ra2+ {[%emt 0:00:11]} 60. Ke3 {[%emt 0:00:08] [#]} Ra1 {[%emt 0:00:19]} (60... Rc2 $1 $17 61. Rd8 Rxc3+ 62. Kf2 Rc2+ 63. Kg3 Rd2) 61. Kf2 $11 {[%emt 0:00:15]} Ra2+ {[%emt 0:00:24]} 62. Kg3 {[%emt 0:00:09]} Nd3 {[%emt 0:00:55]} 63. Rh6 {[%emt 0:01:15]} Ne1 {[%emt 0:00:40]} 64. Rd6 {[%emt 0:00:25] The position is equal.} Rd2 {[%emt 0:00:21]} 65. c4 $1 {[%emt 0:00:35]} Rd3+ {[%emt 0:00:35]} 66. Kf2 {[%emt 0:00:03] [#]} dxc4 $1 {[%emt 0:00:37]} 67. Rxd3 {[%emt 0:01:22]} (67. Rc6 {seems wilder.} Rf3+ 68. Kxe1 Rf1+ 69. Ke2) 67... Nxd3+ {[%emt 0:00:06]} 68. Kxg2 {[%emt 0:00:03] KB-KN} Ke6 {[%emt 0:00:31]} (68... c3 {is more complex.} 69. Be3 c2 70. Kf3 Kg6) 69. Kf3 {[%emt 0:00:17]} Kd5 {[%emt 0:00:10]} 70. Ke2 {[%emt 0:00:23]} Kc6 {[%emt 0:00:36]} 71. Bd4 {[%emt 0:00:16]} Kb5 {[%emt 0:00:14]} 72. Kd2 {[%emt 0:00:13]} Nb4 {[%emt 0:00:08]} 73. Bc3 {[%emt 0:00:12]} Nd5 {[%emt 0:00:10]} 74. Bd4 {[%emt 0:00:20]} Kb4 {[%emt 0:00:05]} 75. Kc2 {[%emt 0:00:10]} c3 {[%emt 0:00:25]} 76. Bxc3+ {[%emt 0:03:25]} Nxc3 {[%emt 0:03:09] White happily takes the draw.  Weighted Error Value: White=0.70/Black=0.51} 1/2-1/2

[Event "15th Arad Open 2022"]
[Site "Arad"]
[Date "2022.08.11"]
[Round "5.2"]
[White "David, Alexandru-Vasile"]
[Black "Sedlak, Nikola"]
[Result "1/2-1/2"]
[ECO "D52"]
[WhiteElo "2433"]
[BlackElo "2480"]
[Annotator "TA"]
[PlyCount "143"]
[EventDate "2022.08.08"]
[EventType "swiss"]
[EventCountry "ROU"]
[SourceTitle "playchess.com"]
[Source "ChessBase"]
[SourceQuality "1"]
[TimeControl "5400+30"]

{[%evp 15,143,23,31,27,27,22,26,16,19,33,25,33,50,0,0,0,31,-15,26,15,23,18,27,18,24,27,38,43,35,26,48,33,40,37,60,58,71,36,49,44,69,69,92,88,84,27,21,0,0,0,0,0,0,-20,-20,-61,-16,-58,-62,-82,0,-77,-19,-9,0,0,0,0,0,0,15,6,93,11,221,201,200,185,226,214,218,219,223,217,225,162,244,246,283,270,251,210,210,202,183,103,116,46,574,551,487,8,8,8,22,22,22,2,2,2,2,12,10,0,0,0,0,0,0,0,0,0,0,0,0,0,0,0,0,0]} 1. d4 {[%emt 0:00:25]} d5 {[%emt 0:00:58]} 2. c4 {[%emt 0:00:10]} c6 {[%emt 0:00:12]} 3. Nf3 {[%emt 0:00:59]} Nf6 {[%emt 0:00:07]} 4. Nc3 {[%emt 0:00:10]} e6 {[%emt 0:00:21]} 5. Bg5 {[%emt 0:00:34]} Nbd7 {[%emt 0:00:19]} 6. e3 {[%emt 0:02:15]} Qa5 {[%emt 0:00:48]} 7. cxd5 {[%emt 0:01:33]} exd5 {[%emt 0:00:10]} 8. Nd2 {[%emt 0:00:30]} Bd6 {[%emt 0:00:25] 8...Be7 is becoming the main line.} 9. Bd3 {[%emt 0:00:34] D52: Queen's Gambit Declined: Cambridge Springs Variation.} O-O {[%emt 0:00:38]} 10. O-O {[%emt 0:04:59]} Re8 {[%emt 0:01:21]} 11. Qc2 {[%emt 0:00:13] White has an edge.} Qc7 {[%emt 0:00:45]} 12. Kh1 {[%emt 0:00:18]} h6 {[%emt 0:01:22]} 13. Bh4 {[%emt 0:00:05]} Nh5 {[%emt 0:09:33] [#]} 14. Be2 $146 {[%emt 0:03:48]} (14. e4 $14) ({Predecessor:} 14. Rac1 Ndf6 15. Nb5 Qb8 16. Nxd6 Qxd6 17. Nf3 Re7 18. Kg1 g5 19. Bg3 Nxg3 20. hxg3 {0-1 (36) Holec,M (2309)-Ananskikh,E (2360) ICCF email 2013}) 14... Ndf6 $11 {[%emt 0:03:38]} 15. Rac1 {[%emt 0:14:41]} g5 {[%emt 0:01:12]} (15... Bxh2 16. Bxh5 (16. Nxd5 Nxd5 17. Bxh5 g5 $11) 16... g5 17. Bf3 $1 $16 (17. Nb5 Qd8 $11)) 16. Qd1 {[%emt 0:02:38]} gxh4 {[%emt 0:00:47]} 17. Nb5 {[%emt 0:02:43]} Qd8 {[%emt 0:00:10]} 18. Nxd6 {[%emt 0:00:10]} Qxd6 {[%emt 0:00:08]} 19. Bxh5 {[%emt 0:00:06]} Bf5 {[%emt 0:01:53]} 20. Be2 {[%emt 0:05:57]} Kh8 {[%emt 0:06:00]} 21. Nf3 {[%emt 0:03:17]} h3 {[%emt 0:00:11] aiming for ...hxg2+.} 22. g3 {[%emt 0:00:19]} Be4 {[%emt 0:00:44]} 23. Kg1 {[%emt 0:00:20]} Bxf3 {[%emt 0:00:32]} 24. Bxf3 {[%emt 0:00:07]} Rg8 {[%emt 0:01:04]} 25. Be2 {[%emt 0:12:21]} Rae8 {[%emt 0:00:08]} 26. Kh1 {[%emt 0:04:20]} Rg5 {[%emt 0:07:51]} 27. Bd3 {[%emt 0:02:26]} Qe7 {[%emt 0:03:53]} 28. Qf3 {[%emt 0:04:17]} Kg7 {[%emt 0:03:38]} 29. Bf5 {[%emt 0:04:14]} Ne4 {[%emt 0:00:07]} 30. Rc2 {[%emt 0:04:24] Prevents Nd2.} (30. Bxh3 Nd2 31. Qd1 Nxf1 32. Bxf1 Qd7 $15) (30. Qf4 $1 $16) 30... Qf6 {[%emt 0:00:52]} 31. Bxe4 {[%emt 0:00:17]} dxe4 {[%emt 0:01:20]} 32. Qxf6+ {[%emt 0:02:19]} Kxf6 {[%emt 0:00:06][%mdl 4096] Endgame KRR-KRR} 33. f3 {[%emt 0:00:12]} Kg6 {[%emt 0:02:55]} 34. f4 {[%emt 0:05:28]} Ra5 {[%emt 0:00:35]} 35. a3 {[%emt 0:00:06]} f5 {[%emt 0:04:51]} 36. Kg1 {[%emt 0:00:59]} Rb5 {[%emt 0:01:15]} 37. Kf2 {[%emt 0:00:07]} Kf6 {[%emt 0:02:18]} (37... a5 $1 $17) 38. Ke2 {[%emt 0:02:14]} (38. Rb1 $11) 38... Ke6 {[%emt 0:01:53]} ({Black should try} 38... Rb3 $17) 39. Rb1 $1 {[%emt 0:02:51]} a5 {[%emt 0:00:29]} 40. a4 {[%emt 0:00:00]} Rb4 {[%emt 0:00:00]} 41. Rc5 {[%emt 0:00:00]} Ra8 {[%emt 0:00:00]} 42. b3 {[%emt 0:00:00]} h5 {[%emt 0:00:00]} 43. Kd2 {[%emt 0:00:00]} Rb6 {[%emt 0:00:00]} (43... Ra6 $1 $11 {remains equal.}) 44. Rb2 {[%emt 0:00:00]} (44. Kc3 $16) 44... Rba6 $2 {[%emt 0:00:00]} (44... Raa6 $11) 45. Re5+ $18 {[%emt 0:00:00]} Kf6 {[%emt 0:00:00][%cal Oh5h4]} 46. Rc2 $1 {[%emt 0:00:00] Rcc5 is the strong threat.} Rb6 {[%emt 0:00:00]} 47. Rcc5 {[%emt 0:00:00][%csl LRa5,LRf5]} Rxb3 {[%emt 0:00:00]} 48. Rxf5+ {[%emt 0:00:00]} Ke6 {[%emt 0:00:00]} 49. Rce5+ {[%emt 0:00:00]} Kd6 {[%emt 0:00:00]} 50. Rxh5 {[%emt 0:00:00]} Rb2+ {[%emt 0:00:00]} (50... b5 $142) 51. Kc3 {[%emt 0:00:00]} Rxh2 {[%emt 0:00:00]} 52. Rh6+ {[%emt 0:00:00]} ({Resist} 52. Rxe4 $6 Rd8 53. Kd3 (53. Rxa5 Rh1 $14) 53... Rh1 $18) 52... Kc7 {[%emt 0:00:00]} 53. f5 {[%emt 0:00:00]} ({But not} 53. Rxe4 $6 Rd8 54. Kd3 Rh1 $18) 53... Rg8 {[%emt 0:00:00]} 54. Rxe4 {[%emt 0:00:00]} Rxg3 {[%emt 0:00:00] [#]} 55. Re7+ {[%emt 0:00:00]} (55. Rh7+ $1 $18 Kb6 56. Ree7) 55... Kb6 $16 {[%emt 0:00:00] [#]} 56. f6 {[%emt 0:02:29]} (56. Kd3 $1 $16 {And now Rhh7 would win.} Ra2 57. Ke4) 56... Rf2 $2 {[%emt 0:00:00][%mdl 8192]} (56... Rf3 $1 $14) 57. Rhh7 $18 {[%emt 0:02:01]} Ka6 {[%emt 0:00:00]} 58. f7 $2 {[%emt 0:00:07]} ({Better is} 58. Kc4 $18 Rg8 59. Rxb7) 58... Rgf3 $11 {[%emt 0:00:33] The position is equal.} 59. f8=Q {[%emt 0:05:43]} Rxf8 {[%emt 0:00:10]} 60. Rxb7 {[%emt 0:00:04] White wants to mate with Ra7+.} Ra8 {[%emt 0:00:20] Prevents Ra7+.} 61. Rb1 {[%emt 0:00:38] Threatening mate with Rhb7.} Re8 $1 {[%emt 0:04:26]} (61... h2 $2 {gets mated.} 62. Rhb7) 62. Rxh3 {[%emt 0:04:06]} Ra2 {[%emt 0:00:16] Prevents Ra1.} 63. Kc4 {[%emt 0:02:15]} Re6 $1 {[%emt 0:04:23]} 64. Rh8 {[%emt 0:06:26][%cal Rh8a8]} Rxa4+ {[%emt 0:00:18]} 65. Kc5 {[%emt 0:00:05][%cal Rh8a8]} Rb4 $1 {[%emt 0:00:05]} 66. Rxb4 {[%emt 0:00:13]} axb4 {[%emt 0:00:08] KR-KR} 67. Rh3 {[%emt 0:00:12]} Ka5 $1 {[%emt 0:02:04]} 68. Rh8 {[%emt 0:01:07][%cal Rh8a8]} Ka6 {[%emt 0:01:57]} 69. Rb8 {[%emt 0:03:43]} Rxe3 {[%emt 0:00:39]} 70. Rxb4 {[%emt 0:00:06]} Rc3+ {[%emt 0:00:19]} 71. Rc4 {[%emt 0:00:04]} Rxc4+ {[%emt 0:00:06]} 72. Kxc4 {[%emt 0:01:00] Black escapes into a draw.  Weighted Error Value: White=0.30/Black=0.32} 1/2-1/2

[Event "15th Arad Open 2022"]
[Site "Arad"]
[Date "2022.08.11"]
[Round "5.3"]
[White "Ionescu, Mihai"]
[Black "Manolache, Marius"]
[Result "0-1"]
[ECO "A46"]
[WhiteElo "2250"]
[BlackElo "2469"]
[Annotator "TA"]
[PlyCount "83"]
[EventDate "2022.08.08"]
[EventType "swiss"]
[EventCountry "ROU"]
[SourceTitle "playchess.com"]
[Source "ChessBase"]
[SourceQuality "1"]
[TimeControl "5400+30"]

{[%evp 9,83,35,52,15,20,25,31,0,0,0,20,21,15,18,22,16,16,-12,10,-19,-14,-31,0,0,0,-20,-10,-30,-7,-25,-16,-29,0,0,0,0,0,-34,-26,-44,0,0,0,-35,-50,-63,0,0,-16,0,0,0,0,-183,-173,-271,-100,-643,-634,-823,-762,-760,-722,-596,-510,-1513,-1418,-29988,-1564,-29981,-2009,-1869,0,-29981,-29982,-29977]} 1. Nf3 {[%emt 0:01:14]} d6 {[%emt 0:00:07]} 2. d4 {[%emt 0:00:25]} Nf6 {[%emt 0:00:07]} 3. g3 {[%emt 0:01:12]} c6 {[%emt 0:00:30]} 4. Bg2 {[%emt 0:00:24]} g6 {[%emt 0:00:17]} 5. b3 {[%emt 0:00:44]} a5 {[%emt 0:00:46]} 6. a4 {[%emt 0:00:11] A46: 1 d4 Nf6 2 Nf3 e6: Torre, London and Colle Systems.} Bg7 {[%emt 0:02:28]} 7. Bb2 {[%emt 0:00:17] [#]} h5 $146 {[%emt 0:03:47]} ({Predecessor:} 7... Bf5 8. Nbd2 d5 9. O-O Na6 10. Ne5 Qc8 11. Re1 Bh3 12. Bh1 h5 13. e4 h4 {1-0 (50) Benkovic,P (2414)-Markovic,M (2535) Jahorina 2001}) 8. h4 {[%emt 0:02:11] White is slightly better.} Bf5 {[%emt 0:02:26]} 9. Nbd2 {[%emt 0:01:12]} Ne4 {[%emt 0:00:34]} 10. O-O {[%emt 0:06:30]} d5 {[%emt 0:06:15]} 11. Nxe4 {[%emt 0:05:55]} Bxe4 {[%emt 0:00:08]} 12. Ne5 {[%emt 0:01:27]} Nd7 {[%emt 0:09:54]} 13. Nxd7 {[%emt 0:02:22] Threatens to win with Bxe4.} Qxd7 {[%emt 0:00:27]} 14. Qd2 {[%emt 0:01:15]} Bh6 {[%emt 0:05:49]} 15. f4 {[%emt 0:02:01]} f5 {[%emt 0:10:38]} 16. e3 {[%emt 0:03:53]} Kf7 {[%emt 0:02:22]} 17. Rf2 {[%emt 0:06:01]} Bg7 {[%emt 0:00:20]} 18. Ba3 {[%emt 0:00:49]} Bf6 {[%emt 0:00:13]} 19. Bf1 {[%emt 0:00:21]} Rhc8 {[%emt 0:04:06]} 20. Rc1 {[%emt 0:04:25]} b5 {[%emt 0:06:21]} 21. Bc5 {[%emt 0:01:16]} bxa4 {[%emt 0:00:05]} 22. bxa4 {[%emt 0:00:05]} Rcb8 {[%emt 0:00:02]} 23. Re2 {[%emt 0:05:11][%cal Bf2e2,Be2e1,Be1a1][%mdl 32]} Rb2 {[%emt 0:05:14]} 24. Qc3 {[%emt 0:04:04]} Rb7 {[%emt 0:00:12]} 25. Ree1 {[%emt 0:00:51]} Qc7 {[%emt 0:00:21][%cal Og6g5]} 26. Rb1 {[%emt 0:06:22]} Rab8 {[%emt 0:00:08]} 27. Rxb7 {[%emt 0:00:10]} Rxb7 {[%emt 0:00:05]} (27... Qxb7 $15 28. Ba3 (28. Qxa5 Bxc2 29. Qd2 Bxa4 $15) 28... Bg7) 28. Ra1 {[%emt 0:01:27]} g5 {[%emt 0:03:32]} 29. hxg5 {[%emt 0:05:03]} Bxg5 {[%emt 0:00:09]} 30. Qd2 {[%emt 0:01:34]} Bf6 {[%emt 0:04:26]} 31. Qh2 $2 {[%emt 0:03:27]} (31. Bd3 $11 {and White has nothing to worry.}) 31... h4 $1 $19 {[%emt 0:00:48] Strongly threatening ...Rb8.} 32. gxh4 {[%emt 0:05:37]} (32. Qe2 {was necessary.} Rb8 33. Bg2 (33. Qh5+ $2 Kg7 $19)) 32... Qb8 $2 {[%emt 0:01:32]} (32... Rb8 $1 $19 {[%cal Rb8g8]} 33. Bd3 Rg8+ 34. Kf1 Bxd3+ 35. cxd3 Qb8) 33. Qe2 $2 {[%emt 0:02:09][%mdl 8192]} (33. Rc1 $17) 33... Qh8 {[%emt 0:02:11]} ({Wrong is} 33... Qg8+ $2 34. Kh2 $19) 34. h5 {[%emt 0:01:18]} Qg7+ {[%emt 0:01:26]} 35. Bg2 {[%emt 0:01:53]} Rb2 {[%emt 0:02:34]} 36. Rc1 {[%emt 0:01:05]} Qg3 {[%emt 0:00:18] ( -> ...Bxg2)} 37. Qf2 {[%emt 0:02:51]} (37. Kf1 $142 Bxc2 38. Kg1) 37... Qg4 {[%emt 0:00:08]} 38. Kf1 {[%emt 0:03:40] [#]} Bh4 {[%emt 0:00:59]} (38... Rxc2 $142 $1 {[%mdl 512]} 39. Qxc2 (39. Rxc2 Qd1+) 39... Bxc2 40. Bb6 Bd3+ 41. Kg1 Be4 42. Rc2 Qd1+ 43. Bf1 Qxc2 44. Bxa5 Bh4 45. Bd2 Qxd2 46. Be2 Qxe3+ 47. Kh2 Qg3#) 39. Qd2 {[%emt 0:00:11] [#]} Bf3 {[%emt 0:04:34]} (39... Rxc2 $142 $1 {[%mdl 512]} 40. Rxc2 Bxg2+ 41. Kg1 Bf3+ 42. Qg2 Bxg2 43. Rxg2 Qd1+ 44. Kh2 Qxh5 45. Kg1 Qf3 46. Bxe7 Qxe3+ 47. Kh1 Bxe7 48. Rh2 Qe4+ 49. Kg1 Qxd4+ 50. Kg2 Bc5 51. Rh7+ Kg6 52. Rh1 Qf2+ 53. Kh3 Qf3+ 54. Kh2 Qxf4+ 55. Kg2 Qg4+ 56. Kf1 Qf3+ 57. Ke1 Bb4#) 40. Kg1 {[%emt 0:19:27]} Be4 (40... Rb8 $19 41. Rf1 Be2) 41. Kf1 $1 {[#]} Rxc2 $1 {[%mdl 512]} 42. Rxc2 {[%emt 0:01:00] Weighted Error Value: White=0.82/Black=0.61} 0-1

[Event "15th Arad Open 2022"]
[Site "Arad"]
[Date "2022.08.11"]
[Round "5.4"]
[White "Srbis, Jurica"]
[Black "Magold, Victor"]
[Result "1-0"]
[ECO "E38"]
[WhiteElo "2472"]
[BlackElo "2074"]
[Annotator "TA"]
[PlyCount "75"]
[EventDate "2022.08.08"]
[EventType "swiss"]
[EventCountry "ROU"]
[SourceTitle "playchess.com"]
[Source "ChessBase"]
[SourceQuality "1"]
[TimeControl "5400+30"]

{[%evp 10,75,30,36,53,39,45,16,24,31,54,53,61,64,76,70,76,42,72,27,80,93,150,142,139,94,250,240,235,240,231,238,221,235,513,518,506,498,510,510,454,408,407,397,414,368,647,644,1028,737,824,346,968,955,943,940,29990,892,29994,29995,29995,29994,29996,29997,29997,29998,29998,29999]} 1. d4 {[%emt 0:01:39]} Nf6 {[%emt 0:01:31]} 2. c4 {[%emt 0:00:11]} e6 {[%emt 0:00:05]} 3. Nc3 {[%emt 0:00:13]} Bb4 {[%emt 0:00:10]} 4. Qc2 {[%emt 0:00:08]} c5 {[%emt 0:00:49]} 5. dxc5 {[%emt 0:00:07]} Bxc5 {[%emt 0:00:08]} 6. Nf3 {[%emt 0:00:13]} Be7 {[%emt 0:00:04] E38: Nimzo-Indian: Classical: 4...c5.} 7. Bf4 {[%emt 0:01:41]} Nh5 {[%emt 0:02:09]} 8. Bg3 {[%emt 0:06:04] [#]} O-O $146 {[%emt 0:11:05] The position is equal.} ({Predecessor:} 8... Nxg3 9. hxg3 h6 10. e3 d6 11. O-O-O Nd7 12. g4 a6 13. g5 Bxg5 14. Nxg5 Qxg5 {1-0 (27) Nikolov,M (2565)-Bojchev,M (2400) Sofia 2010}) 9. Rd1 {[%emt 0:01:40]} f5 {[%emt 0:09:25]} 10. e3 {[%emt 0:01:51]} Nc6 {[%emt 0:00:49]} 11. Be2 {[%emt 0:07:19]} Nxg3 {[%emt 0:05:46]} 12. hxg3 {[%emt 0:00:11][%cal Og3g4]} g6 {[%emt 0:00:11]} 13. a3 {[%emt 0:01:50]} b6 {[%emt 0:02:20]} 14. e4 {[%emt 0:06:17]} fxe4 {[%emt 0:12:42]} (14... f4 $1 $11 {remains equal.}) 15. Nxe4 $16 {[%emt 0:00:17] Pair of Knights!} Bb7 {[%emt 0:00:12]} (15... Bf6 $142) 16. Qd2 {[%emt 0:06:11] aiming for Qh6. 0x0.001eba8b9d35dp-1022s more active pieces.} Rf7 {[%emt 0:11:20]} 17. Kf1 {[%emt 0:00:47]} d5 $2 {[%emt 0:05:07] Black cannot hold the game after this.} (17... Rg7 $16 {keeps fighting.}) 18. Neg5 $1 $18 {[%emt 0:03:35]} (18. cxd5 $6 Qxd5 19. Qe3 (19. Qxd5 exd5 20. Nc3 Rd8 $14) 19... Qf5) 18... Bxg5 {[%emt 0:00:04]} 19. Nxg5 {[%emt 0:00:11]} Re7 {[%emt 0:00:12]} 20. Bg4 $1 {[%emt 0:03:04]} ({Weaker is} 20. cxd5 exd5 21. f4 (21. Qxd5+ $2 Qxd5 22. Rxd5 Rae8 $19) 21... Qd6 $14) 20... Bc8 {[%emt 0:01:37]} 21. cxd5 {[%emt 0:13:13]} exd5 {[%emt 0:00:13]} (21... Qxd5 22. Qe3 (22. Qxd5 exd5 23. Bf3 Ba6+ 24. Kg1 Bc4 $16) 22... Qc4+ 23. Be2 Qc5) 22. Bf3 $1 {[%emt 0:00:10]} Ba6+ {[%emt 0:01:47]} 23. Kg1 {[%emt 0:01:54]} Bc4 {[%emt 0:00:26]} 24. Rh4 {[%emt 0:06:08]} Bb3 {[%emt 0:03:58]} 25. Rc1 {[%emt 0:00:28]} ({Less strong is} 25. Bxd5+ Bxd5 26. Qxd5+ Qxd5 27. Rxd5 Rd8 28. Rxd8+ Nxd8 $16) 25... Ne5 {[%emt 0:00:08]} 26. Rc3 {[%emt 0:00:25]} Nxf3+ {[%emt 0:00:36]} 27. Rxf3 {[%emt 0:00:08]} Bc4 {[%emt 0:02:50]} (27... Ba2 28. Rhf4 d4 29. Rxd4 Qe8) 28. b3 {[%emt 0:04:03]} Ba6 {[%emt 0:03:55]} 29. Re3 {[%emt 0:05:03]} Rd7 {[%emt 0:04:19]} 30. Ne6 {[%emt 0:00:46]} (30. Re6 $142) 30... Qf6 $2 {[%emt 0:02:46]} (30... Qc8 31. Ng5 Qf8) 31. Rf4 {[%emt 0:01:02]} Qa1+ {[%emt 0:00:03]} 32. Kh2 {[%emt 0:00:10] White threatens Qb4 and mate.} d4 {[%emt 0:03:24] [#]} 33. Ref3 {[%emt 0:00:54]} (33. Qb4 $142 $1 h6 34. Ref3 g5 35. Rf8+ Kh7 36. Rxa8 Rf7 37. Rxf7+ Kg6 {[#]} 38. Nf4+ $1 {[%mdl 512]} gxf4 39. Qd6+ Kxf7 40. Rxa7+ Bb7 41. Rxb7+ Kg8 42. Qd8#) 33... h5 {[%emt 0:00:05]} 34. Rf8+ {[%emt 0:00:38] White mates.} Rxf8 {[%emt 0:00:05]} 35. Rxf8+ {[%emt 0:00:04]} Kh7 {[%emt 0:00:04] [#]} 36. Rh8+ $3 {[%emt 0:01:09][%mdl 512]} Kxh8 {[%emt 0:00:04]} 37. Qh6+ {[%emt 0:00:05]} Kg8 {[%emt 0:00:06]} 38. Qf8+ {[%emt 0:00:04] Weighted Error Value: White=0.21 (precise) /Black=1.03} 1-0